[Event "Croatian-ch Youth U15 2022"]
[Site "Trogir"]
[Date "2022.06.22"]
[Round "1.1"]
[White "Katic, Gabriel"]
[Black "Grgantov, Marin"]
[Result "0-1"]
[ECO "B01"]
[WhiteElo "1343"]
[BlackElo "2081"]
[Annotator "NA RC"]
[PlyCount "56"]
[EventDate "2022.06.22"]
[EventType "swiss"]
[EventCountry "CRO"]
[SourceTitle "playchess.com"]
[Source "ChessBase"]
[SourceQuality "1"]
[TimeControl "5400+30"]

1. e4 {[%emt 0:00:02]} d5 {[%emt 0:00:25]} 2. exd5 {[%emt 0:00:07]} Nf6 {[%emt 0:00:07]} 3. Nf3 {[%emt 0:00:10]} Bg4 {[%emt 0:00:28]} 4. Be2 {[%emt 0:00:12]} Qxd5 {[%emt 0:00:17]} 5. Nc3 {[%emt 0:00:38]} Qf5 {[%emt 0:07:09]} 6. h3 {[%emt 0:03:38]} Bxf3 {[%emt 0:00:18]} 7. Bxf3 {[%emt 0:00:09]} c6 {[%emt 0:01:00]} 8. d3 {[%emt 0:06:47]} Nbd7 {[%emt 0:03:00]} 9. Be3 {[%emt 0:11:51]} e6 {[%emt 0:02:53]} 10. a3 {[%emt 0:02:17]} Be7 {[%emt 0:13:00]} 11. Qe2 {[%emt 0:06:02]} O-O {[%emt 0:03:07]} 12. O-O {[%emt 0:00:32]} Nd5 {[%emt 0:10:11]} 13. Nxd5 {[%emt 0:09:40]} cxd5 {[%emt 0:00:21]} 14. Rfe1 {[%emt 0:01:25]} Rfc8 {[%emt 0:10:54]} 15. Rac1 {[%emt 0:02:41]} Bd6 {[%emt 0:06:20]} 16. d4 {[%emt 0:06:12]} Nb6 {[%emt 0:04:19]} 17. Bg4 {[%emt 0:13:21]} Qg6 {[%emt 0:01:59]} 18. Bh5 {[%emt 0:00:58]} Qf6 {[%emt 0:00:18]} 19. Bf3 {[%emt 0:00:15]} e5 {[%emt 0:08:59]} 20. c3 {[%emt 0:00:48]} e4 {[%emt 0:01:09]} 21. Bg4 {[%emt 0:00:37]} Rc6 {[%emt 0:01:04]} 22. f3 {[%emt 0:01:30]} Nc4 {[%emt 0:02:50]} 23. Rf1 {[%emt 0:06:42]} Nxe3 {[%emt 0:01:18]} 24. Qxe3 {[%emt 0:00:11]} Bf4 {[%emt 0:00:32]} 25. Qe1 {[%emt 0:00:53]} Bxc1 {[%emt 0:00:57]} 26. fxe4 {[%emt 0:02:39]} Qg5 {[%emt 0:02:40]} 27. exd5 {[%emt 0:02:21]} Be3+ {[%emt 0:01:21]} 28. Kh1 {[%emt 0:00:10]} Rf6 {[%emt 0:01:08]} 0-1

[Event "Croatian-ch Youth U15 2022"]
[Site "Trogir"]
[Date "2022.06.22"]
[Round "1.2"]
[White "Franc, Borna"]
[Black "Radic, Luka D"]
[Result "1-0"]
[ECO "C01"]
[WhiteElo "2032"]
[BlackElo "1334"]
[Annotator "NA RC"]
[PlyCount "51"]
[EventDate "2022.06.22"]
[EventType "swiss"]
[EventCountry "CRO"]
[SourceTitle "playchess.com"]
[Source "ChessBase"]
[SourceQuality "1"]
[TimeControl "5400+30"]

1. e4 {[%emt 0:00:03]} e6 {[%emt 0:00:12]} 2. d4 {[%emt 0:00:06]} d5 {[%emt 0:00:06]} 3. exd5 {[%emt 0:00:03]} exd5 {[%emt 0:00:08]} 4. Nf3 {[%emt 0:00:04]} Bd6 {[%emt 0:00:47]} 5. Bd3 {[%emt 0:00:05]} Ne7 {[%emt 0:00:31]} 6. O-O {[%emt 0:00:20]} O-O {[%emt 0:04:05]} 7. Re1 {[%emt 0:00:03]} Bf5 {[%emt 0:01:14]} 8. Bxf5 {[%emt 0:01:22]} Nxf5 {[%emt 0:00:07]} 9. Qd3 {[%emt 0:01:05]} g6 {[%emt 0:01:39]} 10. Nc3 {[%emt 0:08:05]} Nc6 {[%emt 0:09:22]} 11. Nb5 {[%emt 0:03:31]} a6 {[%emt 0:07:26]} 12. Nxd6 {[%emt 0:00:34]} Qxd6 {[%emt 0:00:08]} 13. c3 {[%emt 0:01:28]} Rae8 {[%emt 0:00:36]} 14. Bd2 {[%emt 0:00:40]} f6 {[%emt 0:01:12]} 15. g3 {[%emt 0:16:22]} Kh8 {[%emt 0:09:12]} 16. Bf4 {[%emt 0:00:27]} Qd7 {[%emt 0:00:07]} 17. h4 {[%emt 0:02:54]} Rxe1+ {[%emt 0:04:50]} 18. Rxe1 {[%emt 0:00:22]} Rg8 {[%emt 0:00:09]} 19. Qe2 {[%emt 0:03:26]} Nd8 {[%emt 0:04:10]} 20. Nh2 {[%emt 0:05:34]} g5 {[%emt 0:06:27]} 21. hxg5 {[%emt 0:00:24]} fxg5 {[%emt 0:00:07]} 22. Be5+ {[%emt 0:00:03]} Ng7 {[%emt 0:00:09]} 23. Qf3 {[%emt 0:11:16]} Nde6 {[%emt 0:04:02]} 24. Qf5 {[%emt 0:08:27]} Nc5 {[%emt 0:05:50]} 25. Bxg7+ {[%emt 0:00:48]} Rxg7 {[%emt 0:00:20]} 26. Qf8+ {[%emt 0:00:26]} 1-0

[Event "Croatian-ch Youth U15 2022"]
[Site "Trogir"]
[Date "2022.06.22"]
[Round "1.3"]
[White "Ercegovic, Ivan"]
[Black "Colev, Ivor"]
[Result "0-1"]
[ECO "B80"]
[WhiteElo "1321"]
[BlackElo "1984"]
[Annotator "NA RC"]
[PlyCount "88"]
[EventDate "2022.06.22"]
[EventType "swiss"]
[EventCountry "CRO"]
[SourceTitle "playchess.com"]
[Source "ChessBase"]
[SourceQuality "1"]
[TimeControl "5400+30"]

1. e4 {[%emt 0:00:03]} c5 {[%emt 0:00:04]} 2. Nf3 {[%emt 0:00:10]} d6 {[%emt 0:00:04]} 3. d4 {[%emt 0:00:20]} cxd4 {[%emt 0:00:05]} 4. Nxd4 {[%emt 0:00:06]} Nf6 {[%emt 0:00:05]} 5. Nc3 {[%emt 0:00:18]} e6 {[%emt 0:00:05]} 6. Be3 {[%emt 0:00:32]} Be7 {[%emt 0:00:06]} 7. f3 {[%emt 0:00:23]} O-O {[%emt 0:00:06]} 8. Qd2 {[%emt 0:01:21]} Nc6 {[%emt 0:00:07]} 9. O-O-O {[%emt 0:00:44]} d5 {[%emt 0:00:39]} 10. Kb1 {[%emt 0:02:58]} a6 {[%emt 0:07:33]} 11. h4 {[%emt 0:01:39]} Ne5 {[%emt 0:23:59]} 12. Be2 {[%emt 0:23:05]} Nc4 {[%emt 0:01:53]} 13. Bxc4 {[%emt 0:06:15]} dxc4 {[%emt 0:00:08]} 14. g4 {[%emt 0:00:45]} Qc7 {[%emt 0:03:34]} 15. h5 {[%emt 0:06:10]} b5 {[%emt 0:05:07]} 16. g5 {[%emt 0:03:46]} Ne8 {[%emt 0:03:23]} 17. g6 {[%emt 0:12:06]} b4 {[%emt 0:01:20]} 18. Nce2 {[%emt 0:01:05]} c3 {[%emt 0:03:04]} 19. bxc3 {[%emt 0:00:44]} Rb8 {[%emt 0:01:21]} 20. Ka1 {[%emt 0:03:02]} Bf6 {[%emt 0:20:18]} 21. Rb1 {[%emt 0:04:48]} Nd6 {[%emt 0:05:42]} 22. cxb4 {[%emt 0:14:00]} Rd8 {[%emt 0:02:01]} 23. c3 {[%emt 0:03:50]} e5 {[%emt 0:06:14]} 24. Nb3 {[%emt 0:04:52]} Nxe4 {[%emt 0:01:10]} 25. Qc2 {[%emt 0:00:56]} Nd6 {[%emt 0:00:33]} 26. gxf7+ {[%emt 0:03:23]} Qxf7 {[%emt 0:01:41]} 27. Rbd1 {[%emt 0:02:03]} Bf5 {[%emt 0:00:48]} 28. Qc1 {[%emt 0:00:08]} Nc4 {[%emt 0:03:28]} 29. Ng3 {[%emt 0:00:55]} Rxd1 {[%emt 0:06:15]} 30. Rxd1 {[%emt 0:00:01]} Nxe3 {[%emt 0:00:09]} 31. Qxe3 {[%emt 0:02:15]} Bc2 {[%emt 0:00:07]} 32. Rg1 {[%emt 0:00:55]} Bxb3 {[%emt 0:00:27]} 33. axb3 {[%emt 0:00:02]} Qxb3 {[%emt 0:00:13]} 34. Ne4 {[%emt 0:01:32]} Qa3+ {[%emt 0:00:44]} 35. Kb1 {[%emt 0:00:05]} Rxb4+ {[%emt 0:00:08]} 36. Kc2 {[%emt 0:00:11]} Rb2+ {[%emt 0:04:17]} 37. Kd3 {[%emt 0:00:01]} Qe7 {[%emt 0:00:47]} 38. Qh6 {[%emt 0:02:37]} Qd7+ {[%emt 0:00:42]} 39. Ke3 {[%emt 0:00:03]} Qa7+ {[%emt 0:00:14]} 40. Kd3 {[%emt 0:00:11]} Qxg1 {[%emt 0:00:14]} 41. Nxf6+ {[%emt 0:00:18]} gxf6 {[%emt 0:00:04]} 42. Qxf6 {[%emt 0:00:40]} Qf1+ {[%emt 0:00:40]} 43. Ke4 {[%emt 0:00:46]} Qc4+ {[%emt 0:00:15]} 44. Ke3 {[%emt 0:02:01]} Re2# {[%emt 0:00:06]} 0-1

[Event "Croatian-ch Youth U15 2022"]
[Site "Trogir"]
[Date "2022.06.22"]
[Round "1.4"]
[White "Sundac, Ivano"]
[Black "Supancic, Fran"]
[Result "1-0"]
[ECO "D02"]
[WhiteElo "1978"]
[BlackElo "1328"]
[Annotator "NA RC"]
[PlyCount "105"]
[EventDate "2022.06.22"]
[EventType "swiss"]
[EventCountry "CRO"]
[SourceTitle "playchess.com"]
[Source "ChessBase"]
[SourceQuality "1"]
[TimeControl "5400+30"]

1. d4 {[%emt 0:00:01]} d5 {[%emt 0:00:05]} 2. Bf4 {[%emt 0:00:04]} Bf5 {[%emt 0:00:42]} 3. e3 {[%emt 0:00:04]} e6 {[%emt 0:00:08]} 4. Nf3 {[%emt 0:00:05]} Nf6 {[%emt 0:00:10]} 5. c3 {[%emt 0:00:27]} Be7 {[%emt 0:00:41]} 6. Nbd2 {[%emt 0:01:06]} O-O {[%emt 0:00:29]} 7. Qb3 {[%emt 0:00:22]} b6 {[%emt 0:02:16]} 8. Ne5 {[%emt 0:00:46]} Nfd7 {[%emt 0:03:00]} 9. Nxd7 {[%emt 0:01:12]} Nxd7 {[%emt 0:02:08]} 10. c4 {[%emt 0:01:25]} dxc4 {[%emt 0:07:06]} 11. Bxc4 {[%emt 0:00:26]} Nf6 {[%emt 0:02:48]} 12. O-O {[%emt 0:01:41]} Ne4 {[%emt 0:03:36]} 13. Rfd1 {[%emt 0:01:16]} Bd6 {[%emt 0:06:10]} 14. Bxd6 {[%emt 0:01:27]} cxd6 {[%emt 0:00:51]} 15. Ba6 {[%emt 0:02:11]} Nxd2 {[%emt 0:07:23]} 16. Rxd2 {[%emt 0:00:05]} Qc7 {[%emt 0:01:03]} 17. f3 {[%emt 0:01:15]} d5 {[%emt 0:01:53]} 18. Rdd1 {[%emt 0:00:38]} Rfd8 {[%emt 0:02:49]} 19. Rac1 {[%emt 0:01:19]} Qe7 {[%emt 0:00:54]} 20. Rc3 {[%emt 0:00:41]} h6 {[%emt 0:00:52]} 21. Rdc1 {[%emt 0:00:07]} Rd7 {[%emt 0:02:15]} 22. Bb5 {[%emt 0:00:13]} Rdd8 {[%emt 0:00:30]} 23. Rc7 {[%emt 0:00:08]} Qf8 {[%emt 0:01:49]} 24. Ba6 {[%emt 0:02:09]} Qd6 {[%emt 0:04:15]} 25. R1c6 {[%emt 0:00:51]} Qf8 {[%emt 0:00:12]} 26. a4 {[%emt 0:02:21]} Qe8 {[%emt 0:01:50]} 27. Qa3 {[%emt 0:03:22]} Rd7 {[%emt 0:02:22]} 28. Bb5 {[%emt 0:01:32]} Rxc7 {[%emt 0:02:36]} 29. Rxc7 {[%emt 0:00:07]} Qd8 {[%emt 0:00:43]} 30. Qc3 {[%emt 0:00:55]} a6 {[%emt 0:02:26]} 31. Bxa6 {[%emt 0:00:04]} e5 {[%emt 0:05:44]} 32. Bb5 {[%emt 0:00:33]} exd4 {[%emt 0:00:50]} 33. exd4 {[%emt 0:00:04]} Qg5 {[%emt 0:03:28]} 34. Qc1 {[%emt 0:06:40]} Qf6 {[%emt 0:00:55]} 35. Qe3 {[%emt 0:00:35]} Qd6 {[%emt 0:01:23]} 36. Rc6 {[%emt 0:04:53]} Qb8 {[%emt 0:02:44]} 37. Qe5 {[%emt 0:03:26]} Be6 {[%emt 0:01:53]} 38. Kf2 {[%emt 0:10:56]} Qxe5 {[%emt 0:00:42]} 39. dxe5 {[%emt 0:00:06]} Rb8 {[%emt 0:00:50]} 40. Ke3 {[%emt 0:00:54]} Kf8 {[%emt 0:00:14]} 41. Kd4 {[%emt 0:00:12]} Ke7 {[%emt 0:00:17]} 42. Rd6 {[%emt 0:01:02]} h5 {[%emt 0:00:46]} 43. Bc6 {[%emt 0:00:14]} f6 {[%emt 0:01:07]} 44. Bxd5 {[%emt 0:00:20]} fxe5+ {[%emt 0:00:38]} 45. Kxe5 {[%emt 0:00:05]} Bxd5 {[%emt 0:00:11]} 46. Kxd5 {[%emt 0:01:35]} b5 {[%emt 0:00:50]} 47. a5 {[%emt 0:00:27]} Ra8 {[%emt 0:00:05]} 48. b4 {[%emt 0:00:10]} Rb8 {[%emt 0:00:22]} 49. a6 {[%emt 0:00:26]} Ra8 {[%emt 0:00:09]} 50. Rb6 {[%emt 0:00:05]} Kf7 {[%emt 0:00:27]} 51. Kc6 {[%emt 0:00:11]} Rc8+ {[%emt 0:00:25]} 52. Kb7 {[%emt 0:00:05]} Re8 {[%emt 0:00:07]} 53. Rc6 {[%emt 0:00:05]} 1-0

[Event "Croatian-ch Youth U15 2022"]
[Site "Trogir"]
[Date "2022.06.22"]
[Round "1.5"]
[White "Trninic, Marko"]
[Black "Jakovic, Roko"]
[Result "0-1"]
[ECO "B87"]
[WhiteElo "1314"]
[BlackElo "1944"]
[Annotator "NA RC"]
[PlyCount "68"]
[EventDate "2022.06.22"]
[EventType "swiss"]
[EventCountry "CRO"]
[SourceTitle "playchess.com"]
[Source "ChessBase"]
[SourceQuality "1"]
[TimeControl "5400+30"]

1. e4 {[%emt 0:00:03]} c5 {[%emt 0:00:27]} 2. Nf3 {[%emt 0:00:10]} d6 {[%emt 0:00:26]} 3. d4 {[%emt 0:00:17]} cxd4 {[%emt 0:00:21]} 4. Nxd4 {[%emt 0:00:09]} Nf6 {[%emt 0:00:27]} 5. Nc3 {[%emt 0:00:30]} a6 {[%emt 0:00:42]} 6. Bc4 {[%emt 0:02:20]} e6 {[%emt 0:01:33]} 7. O-O {[%emt 0:05:25]} b5 {[%emt 0:02:04]} 8. Bb3 {[%emt 0:01:58]} Be7 {[%emt 0:10:13]} 9. Qf3 {[%emt 0:10:45]} Qc7 {[%emt 0:17:33]} 10. e5 {[%emt 0:03:24]} Bb7 {[%emt 0:18:50]} 11. exd6 {[%emt 0:06:16]} Bxd6 {[%emt 0:03:03]} 12. Qh3 {[%emt 0:01:34]} O-O {[%emt 0:03:40]} 13. Bg5 {[%emt 0:11:53]} Be5 {[%emt 0:05:25]} 14. Bxf6 {[%emt 0:12:41]} Bxf6 {[%emt 0:00:21]} 15. Nxe6 {[%emt 0:08:11]} fxe6 {[%emt 0:01:07]} 16. Bxe6+ {[%emt 0:01:08]} Kh8 {[%emt 0:00:50]} 17. Nd5 {[%emt 0:01:18]} Bxd5 {[%emt 0:08:37]} 18. Bxd5 {[%emt 0:00:08]} Nc6 {[%emt 0:03:32]} 19. Be4 {[%emt 0:01:39]} g6 {[%emt 0:07:32]} 20. Bxg6 {[%emt 0:01:23]} Ne5 {[%emt 0:01:09]} 21. Be4 {[%emt 0:01:30]} Rad8 {[%emt 0:02:48]} 22. Rad1 {[%emt 0:00:48]} Nc4 {[%emt 0:01:49]} 23. b3 {[%emt 0:02:13]} Nd2 {[%emt 0:01:31]} 24. Qf5 {[%emt 0:03:52]} Be5 {[%emt 0:01:59]} 25. Qxf8+ {[%emt 0:04:07]} Rxf8 {[%emt 0:00:10]} 26. Rxd2 {[%emt 0:00:03]} Bxh2+ {[%emt 0:00:43]} 27. Kh1 {[%emt 0:00:07]} Bf4 {[%emt 0:00:26]} 28. Rd5 {[%emt 0:00:40]} Qe7 {[%emt 0:00:46]} 29. Rfd1 {[%emt 0:02:48]} Qh4+ {[%emt 0:00:48]} 30. Kg1 {[%emt 0:00:06]} Bh2+ {[%emt 0:00:14]} 31. Kh1 {[%emt 0:00:38]} Bg3+ {[%emt 0:00:07]} 32. Kg1 {[%emt 0:00:06]} Qh2+ {[%emt 0:00:10]} 33. Kf1 {[%emt 0:00:16]} Rxf2+ {[%emt 0:00:08]} 34. Ke1 {[%emt 0:00:11]} Qg1# {[%emt 0:00:08]} 0-1

[Event "Croatian-ch Youth U15 2022"]
[Site "Trogir"]
[Date "2022.06.22"]
[Round "1.6"]
[White "Bunic, Emanuel"]
[Black "Car, Jura"]
[Result "1/2-1/2"]
[ECO "D36"]
[WhiteElo "1941"]
[BlackElo "1298"]
[Annotator "NA RC"]
[PlyCount "120"]
[EventDate "2022.06.22"]
[EventType "swiss"]
[EventCountry "CRO"]
[SourceTitle "playchess.com"]
[Source "ChessBase"]
[SourceQuality "1"]
[TimeControl "5400+30"]

1. d4 {[%emt 0:00:04]} d5 {[%emt 0:00:01]} 2. c4 {[%emt 0:00:20]} e6 {[%emt 0:00:04]} 3. Nc3 {[%emt 0:00:18]} Nf6 {[%emt 0:00:07]} 4. cxd5 {[%emt 0:00:07]} exd5 {[%emt 0:00:03]} 5. Bg5 {[%emt 0:00:11]} Be7 {[%emt 0:00:07]} 6. e3 {[%emt 0:00:22]} O-O {[%emt 0:00:25]} 7. Bd3 {[%emt 0:00:13]} Re8 {[%emt 0:01:01]} 8. Qc2 {[%emt 0:00:25]} Nbd7 {[%emt 0:00:21]} 9. Nf3 {[%emt 0:00:39]} c6 {[%emt 0:01:24]} 10. O-O {[%emt 0:00:39]} Nf8 {[%emt 0:07:23]} 11. Rae1 {[%emt 0:13:34]} Ng6 {[%emt 0:05:22]} 12. Nd2 {[%emt 0:08:08]} Qc7 {[%emt 0:04:05]} 13. Bxf6 {[%emt 0:01:21]} Bxf6 {[%emt 0:00:09]} 14. Nxd5 {[%emt 0:00:20]} Qd6 {[%emt 0:01:44]} 15. Nxf6+ {[%emt 0:00:49]} Qxf6 {[%emt 0:00:13]} 16. Ne4 {[%emt 0:06:25]} Qd8 {[%emt 0:02:10]} 17. Qc5 {[%emt 0:04:28]} Be6 {[%emt 0:04:26]} 18. b3 {[%emt 0:04:32]} Bd5 {[%emt 0:05:42]} 19. Ng3 {[%emt 0:02:40]} Qd7 {[%emt 0:06:42]} 20. f4 {[%emt 0:09:25]} b6 {[%emt 0:04:53]} 21. Qc3 {[%emt 0:01:24]} c5 {[%emt 0:00:44]} 22. dxc5 {[%emt 0:00:39]} bxc5 {[%emt 0:01:13]} 23. Bxg6 {[%emt 0:01:17]} hxg6 {[%emt 0:00:22]} 24. Qxc5 {[%emt 0:01:00]} Qb7 {[%emt 0:00:49]} 25. Rf2 {[%emt 0:04:34]} Rac8 {[%emt 0:01:16]} 26. Qd4 {[%emt 0:00:45]} Be6 {[%emt 0:03:23]} 27. Rd2 {[%emt 0:02:27]} Qe7 {[%emt 0:01:17]} 28. Ne4 {[%emt 0:09:43]} Rcd8 {[%emt 0:04:00]} 29. Nd6 {[%emt 0:01:38]} Rd7 {[%emt 0:01:10]} 30. e4 {[%emt 0:00:56]} Red8 {[%emt 0:01:42]} 31. e5 {[%emt 0:00:46]} Bg4 {[%emt 0:07:20]} 32. Rc1 {[%emt 0:04:47]} Kf8 {[%emt 0:02:38]} 33. Rc6 {[%emt 0:01:03]} g5 {[%emt 0:02:25]} 34. Qe4 {[%emt 0:06:37]} g6 {[%emt 0:03:01]} 35. fxg5 {[%emt 0:03:50]} Qxg5 {[%emt 0:00:26]} 36. Rf2 {[%emt 0:04:53]} Be6 {[%emt 0:08:09]} 37. Qf4 {[%emt 0:01:21]} Qh5 {[%emt 0:01:13]} 38. Rc1 {[%emt 0:00:55]} Re7 {[%emt 0:02:44]} 39. b4 {[%emt 0:01:10]} Bd5 {[%emt 0:01:18]} 40. Re1 {[%emt 0:00:36]} Rxd6 {[%emt 0:02:27]} 41. Re3 {[%emt 0:01:15]} Rde6 {[%emt 0:02:30]} 42. Rfe2 {[%emt 0:02:00]} Qf5 {[%emt 0:02:57]} 43. Qd4 {[%emt 0:00:51]} Bc6 {[%emt 0:01:28]} 44. Qh4 {[%emt 0:01:22]} Qh5 {[%emt 0:01:00]} 45. Qc4 {[%emt 0:00:35]} Rxe5 {[%emt 0:01:50]} 46. g4 {[%emt 0:01:13]} Rxe3 {[%emt 0:04:37]} 47. gxh5 {[%emt 0:00:23]} Rxe2 {[%emt 0:00:13]} 48. Qxc6 {[%emt 0:00:14]} gxh5 {[%emt 0:00:17]} 49. Qh6+ {[%emt 0:00:17]} Ke8 {[%emt 0:00:11]} 50. Qxh5 {[%emt 0:00:13]} R2e6 {[%emt 0:02:01]} 51. h4 {[%emt 0:00:47]} Kd7 {[%emt 0:01:06]} 52. Qb5+ {[%emt 0:00:40]} Rc6 {[%emt 0:01:04]} 53. h5 {[%emt 0:00:22]} Ree6 {[%emt 0:00:56]} 54. Qb7+ {[%emt 0:00:54]} Rc7 {[%emt 0:00:10]} 55. Qd5+ {[%emt 0:00:32]} Ke7 {[%emt 0:00:33]} 56. Kf2 {[%emt 0:00:51]} a6 {[%emt 0:00:29]} 57. h6 {[%emt 0:00:36]} Rxh6 {[%emt 0:01:22]} 58. Qe5+ {[%emt 0:00:14]} Kd7 {[%emt 0:00:06]} 59. Qd5+ {[%emt 0:00:30]} Kc8 {[%emt 0:01:01]} 60. Qa8+ {[%emt 0:00:26]} Kd7 {[%emt 0:00:05]} 1/2-1/2

[Event "Croatian-ch Youth U15 2022"]
[Site "Trogir"]
[Date "2022.06.22"]
[Round "1.7"]
[White "Horjan, Filip"]
[Black "Gal, Andrej"]
[Result "0-1"]
[ECO "A45"]
[WhiteElo "1295"]
[BlackElo "1874"]
[Annotator "NA RC"]
[PlyCount "38"]
[EventDate "2022.06.22"]
[EventType "swiss"]
[EventCountry "CRO"]
[SourceTitle "playchess.com"]
[Source "ChessBase"]
[SourceQuality "1"]
[TimeControl "5400+30"]

1. d4 {[%emt 0:00:02]} Nf6 {[%emt 0:00:04]} 2. Bf4 {[%emt 0:00:22]} g6 {[%emt 0:00:05]} 3. Nc3 {[%emt 0:00:33]} d5 {[%emt 0:00:06]} 4. Nb5 {[%emt 0:00:56]} Na6 {[%emt 0:00:24]} 5. a3 {[%emt 0:00:12]} Bg7 {[%emt 0:04:14]} 6. Nf3 {[%emt 0:03:04]} O-O {[%emt 0:02:19]} 7. Qd2 {[%emt 0:05:12]} c5 {[%emt 0:15:28]} 8. O-O-O {[%emt 0:04:21]} Ne4 {[%emt 0:10:37]} 9. Qe3 {[%emt 0:02:37]} Qb6 {[%emt 0:01:31]} 10. Nc3 {[%emt 0:02:35]} Nxc3 {[%emt 0:03:05]} 11. bxc3 {[%emt 0:01:48]} Be6 {[%emt 0:07:28]} 12. Bh6 {[%emt 0:00:37]} cxd4 {[%emt 0:00:50]} 13. cxd4 {[%emt 0:00:35]} Rac8 {[%emt 0:01:03]} 14. Bxg7 {[%emt 0:01:33]} Kxg7 {[%emt 0:00:03]} 15. Rd2 {[%emt 0:10:09]} Qa5 {[%emt 0:01:54]} 16. Kb2 {[%emt 0:05:04]} Rc6 {[%emt 0:02:34]} 17. Rd3 {[%emt 0:04:29]} Rfc8 {[%emt 0:01:06]} 18. Rb3 {[%emt 0:05:49]} Rxc2+ {[%emt 0:00:38]} 19. Kb1 {[%emt 0:00:03]} Bf5 {[%emt 0:01:18]} 0-1

[Event "Croatian-ch Youth U15 2022"]
[Site "Trogir"]
[Date "2022.06.22"]
[Round "1.8"]
[White "Zadro, Matej"]
[Black "Rudan, Niko"]
[Result "1-0"]
[ECO "B22"]
[WhiteElo "1861"]
[BlackElo "1291"]
[Annotator "NA RC"]
[PlyCount "61"]
[EventDate "2022.06.22"]
[EventType "swiss"]
[EventCountry "CRO"]
[SourceTitle "playchess.com"]
[Source "ChessBase"]
[SourceQuality "1"]
[TimeControl "5400+30"]

1. e4 {[%emt 0:00:04]} c6 {[%emt 0:00:07]} 2. d4 {[%emt 0:00:03]} d5 {[%emt 0:00:09]} 3. exd5 {[%emt 0:00:01]} cxd5 {[%emt 0:00:03]} 4. c4 {[%emt 0:00:03]} e6 {[%emt 0:00:50]} 5. cxd5 {[%emt 0:03:39]} exd5 {[%emt 0:01:17]} 6. Nc3 {[%emt 0:19:36]} Nc6 {[%emt 0:01:10]} 7. h3 {[%emt 0:12:27]} Nf6 {[%emt 0:02:50]} 8. Bg5 {[%emt 0:00:50]} Be7 {[%emt 0:03:22]} 9. Nf3 {[%emt 0:01:15]} h6 {[%emt 0:04:32]} 10. Bf4 {[%emt 0:04:48]} Bd6 {[%emt 0:03:26]} 11. Bxd6 {[%emt 0:01:05]} Qxd6 {[%emt 0:00:05]} 12. Bd3 {[%emt 0:01:33]} O-O {[%emt 0:03:18]} 13. O-O {[%emt 0:00:55]} a6 {[%emt 0:09:25]} 14. Rc1 {[%emt 0:15:56]} Re8 {[%emt 0:01:01]} 15. Qb3 {[%emt 0:03:21]} Na5 {[%emt 0:17:32]} 16. Qa4 {[%emt 0:04:41]} Qb6 {[%emt 0:01:08]} 17. Nxd5 {[%emt 0:02:08]} Qd8 {[%emt 0:06:12]} 18. Nc7 {[%emt 0:08:31]} Bd7 {[%emt 0:07:24]} 19. Qxa5 {[%emt 0:01:13]} Bc6 {[%emt 0:00:51]} 20. b4 {[%emt 0:05:04]} Nd5 {[%emt 0:04:40]} 21. Nxd5 {[%emt 0:00:55]} Qxa5 {[%emt 0:00:33]} 22. bxa5 {[%emt 0:00:08]} Bxd5 {[%emt 0:00:03]} 23. Bc4 {[%emt 0:00:41]} Bxf3 {[%emt 0:00:32]} 24. gxf3 {[%emt 0:00:04]} Red8 {[%emt 0:00:20]} 25. d5 {[%emt 0:00:33]} Rd6 {[%emt 0:00:27]} 26. Bb3 {[%emt 0:00:12]} Re8 {[%emt 0:00:37]} 27. Rfe1 {[%emt 0:00:07]} Red8 {[%emt 0:00:09]} 28. Rc7 {[%emt 0:00:05]} b5 {[%emt 0:00:33]} 29. axb6 {[%emt 0:00:31]} Rxb6 {[%emt 0:00:23]} 30. Rc6 {[%emt 0:00:03]} Rxc6 {[%emt 0:00:42]} 31. dxc6 {[%emt 0:00:03]} 1-0

[Event "Croatian-ch Youth U15 2022"]
[Site "Trogir"]
[Date "2022.06.22"]
[Round "2.1"]
[White "Grgantov, Marin"]
[Black "Mrkic, Simun"]
[Result "1-0"]
[ECO "B23"]
[WhiteElo "2081"]
[BlackElo "1557"]
[Annotator "NA RC"]
[PlyCount "63"]
[EventDate "2022.06.22"]
[EventType "swiss"]
[EventCountry "CRO"]
[SourceTitle "playchess.com"]
[Source "ChessBase"]
[SourceQuality "1"]
[TimeControl "5400+30"]

1. e4 {[%emt 0:00:06]} c5 {[%emt 0:00:11]} 2. Nc3 {[%emt 0:00:08]} e6 {[%emt 0:00:07]} 3. f4 {[%emt 0:00:13]} Nc6 {[%emt 0:00:36]} 4. Nf3 {[%emt 0:00:19]} Qc7 {[%emt 0:00:45]} 5. d3 {[%emt 0:05:12]} a6 {[%emt 0:02:10]} 6. g3 {[%emt 0:01:24]} Nge7 {[%emt 0:05:04]} 7. Bg2 {[%emt 0:01:36]} g6 {[%emt 0:03:49]} 8. O-O {[%emt 0:06:48]} Bg7 {[%emt 0:04:16]} 9. Be3 {[%emt 0:02:36]} b6 {[%emt 0:03:00]} 10. d4 {[%emt 0:04:36]} cxd4 {[%emt 0:01:36]} 11. Nxd4 {[%emt 0:00:08]} O-O {[%emt 0:06:15]} 12. Qd2 {[%emt 0:14:30]} Bb7 {[%emt 0:06:04]} 13. Rad1 {[%emt 0:00:21]} Rfd8 {[%emt 0:00:50]} 14. Qf2 {[%emt 0:06:12]} Nxd4 {[%emt 0:11:20]} 15. Bxd4 {[%emt 0:00:10]} Bxd4 {[%emt 0:00:36]} 16. Rxd4 {[%emt 0:04:52]} Rac8 {[%emt 0:03:46]} 17. Rfd1 {[%emt 0:02:32]} d5 {[%emt 0:08:04]} 18. exd5 {[%emt 0:02:17]} Bxd5 {[%emt 0:00:31]} 19. Nxd5 {[%emt 0:05:23]} Nxd5 {[%emt 0:00:51]} 20. Bxd5 {[%emt 0:02:22]} exd5 {[%emt 0:00:34]} 21. c3 {[%emt 0:12:05]} Qc5 {[%emt 0:02:59]} 22. c4 {[%emt 0:05:38]} Re8 {[%emt 0:04:28]} 23. cxd5 {[%emt 0:00:58]} Qb5 {[%emt 0:01:33]} 24. R4d2 {[%emt 0:06:03]} Rcd8 {[%emt 0:05:43]} 25. Qd4 {[%emt 0:04:37]} Re7 {[%emt 0:03:53]} 26. a4 {[%emt 0:01:55]} Qb3 {[%emt 0:01:16]} 27. d6 {[%emt 0:02:41]} Re3 {[%emt 0:04:01]} 28. d7 {[%emt 0:01:10]} Qe6 {[%emt 0:01:42]} 29. Kf2 {[%emt 0:01:59]} Re4 {[%emt 0:01:40]} 30. Qd6 {[%emt 0:00:13]} Qc4 {[%emt 0:02:22]} 31. Qxb6 {[%emt 0:01:22]} Rxf4+ {[%emt 0:02:30]} 32. Kg1 {[%emt 0:03:00]} 1-0